[Event "African Online-ch U20-Open 2021"]
[Site "Online"]
[Date "2021.02.01"]
[Round "9.8"]
[White "Lion, Pierre"]
[Black "Shah, Darshan Samir"]
[Result "1-0"]
[ECO "B81"]
[WhiteElo "1586"]
[BlackElo "1502"]
[Annotator "NA RC"]
[PlyCount "127"]
[EventDate "2021.02.01"]
[EventType "swiss"]
[EventCountry "NET"]
[SourceTitle "playchess.com"]
[Source "ChessBase"]
[SourceQuality "1"]
[TimeControl "1500+10"]

1. e4 {[%emt 0:00:00]} c5 {[%emt 0:00:13]} 2. Nf3 {[%emt 0:00:03]} d6 {[%emt 0:00:05]} 3. d4 {[%emt 0:00:03]} cxd4 {[%emt 0:00:07]} 4. Nxd4 {[%emt 0:00:02]} Nf6 {[%emt 0:00:07]} 5. Nc3 {[%emt 0:00:02]} e6 {[%emt 0:00:06]} 6. g4 {[%emt 0:00:04]} h6 {[%emt 0:00:10]} 7. Rg1 {[%emt 0:00:07]} Nc6 {[%emt 0:00:20]} 8. h4 {[%emt 0:00:06]} d5 {[%emt 0:00:08]} 9. Nxc6 {[%emt 0:00:48]} bxc6 {[%emt 0:00:11]} 10. g5 {[%emt 0:00:10]} hxg5 {[%emt 0:00:25]} 11. hxg5 {[%emt 0:00:02]} Nxe4 {[%emt 0:00:30]} 12. Nxe4 {[%emt 0:00:02]} dxe4 {[%emt 0:00:01]} 13. Qxd8+ {[%emt 0:00:02]} Kxd8 {[%emt 0:00:05]} 14. Bf4 {[%emt 0:00:11]} f6 {[%emt 0:00:12]} 15. O-O-O+ {[%emt 0:00:05]} Ke8 {[%emt 0:00:28]} 16. gxf6 {[%emt 0:01:43]} gxf6 {[%emt 0:00:08]} 17. Bc4 {[%emt 0:00:22]} e5 {[%emt 0:00:33]} 18. Be3 {[%emt 0:00:06]} f5 {[%emt 0:00:16]} 19. Bg5 {[%emt 0:00:07]} Be7 {[%emt 0:00:33]} 20. Bxe7 {[%emt 0:00:05]} Kxe7 {[%emt 0:00:08]} 21. Rg7+ {[%emt 0:00:02]} Ke8 {[%emt 0:00:44]} 22. Rd6 {[%emt 0:00:08]} Rh1+ {[%emt 0:01:55]} 23. Kd2 {[%emt 0:00:04]} Rh2 {[%emt 0:00:08]} 24. Ke3 {[%emt 0:00:27]} Rh3+ {[%emt 0:00:10]} 25. Ke2 {[%emt 0:00:03]} Rb8 {[%emt 0:00:27]} 26. b3 {[%emt 0:00:13]} Rb7 {[%emt 0:02:33]} 27. Rg8+ {[%emt 0:00:34]} Ke7 {[%emt 0:00:16]} 28. Rxc6 {[%emt 0:00:13]} Bd7 {[%emt 0:00:19]} 29. Rg7+ {[%emt 0:00:13]} Kd8 {[%emt 0:00:16]} 30. Rd6 {[%emt 0:00:06]} Rc3 {[%emt 0:01:56]} 31. Be6 {[%emt 0:00:10]} Rxc2+ {[%emt 0:00:04]} 32. Kd1 {[%emt 0:00:07]} Rcc7 {[%emt 0:00:08]} 33. Bxf5 {[%emt 0:00:10]} Ke8 {[%emt 0:00:11]} 34. Rgxd7 {[%emt 0:00:05]} Rxd7 {[%emt 0:00:07]} 35. Rxd7 {[%emt 0:00:02]} Rxd7+ {[%emt 0:00:02]} 36. Bxd7+ {[%emt 0:00:01]} Kxd7 {[%emt 0:00:07]} 37. Ke2 {[%emt 0:00:01]} Kc6 {[%emt 0:00:19]} 38. Ke3 {[%emt 0:00:02]} Kd5 {[%emt 0:00:07]} 39. a3 {[%emt 0:00:02]} a6 {[%emt 0:00:07]} 40. b4 {[%emt 0:00:02]} Kc4 {[%emt 0:00:24]} 41. Kxe4 {[%emt 0:00:02]} Kb3 {[%emt 0:00:06]} 42. Kxe5 {[%emt 0:00:19]} Kxa3 {[%emt 0:00:06]} 43. f4 {[%emt 0:00:01]} Kxb4 {[%emt 0:00:06]} 44. f5 {[%emt 0:00:04]} a5 {[%emt 0:00:11]} 45. f6 {[%emt 0:00:02]} a4 {[%emt 0:00:01]} 46. f7 {[%emt 0:00:01]} a3 {[%emt 0:00:21]} 47. f8=Q+ {[%emt 0:00:03]} Kb3 {[%emt 0:00:01]} 48. Qf3+ {[%emt 0:00:31]} Kb2 {[%emt 0:00:07]} 49. Qe2+ {[%emt 0:00:02]} Kb1 {[%emt 0:00:06]} 50. Qd3+ {[%emt 0:00:02]} Kb2 {[%emt 0:00:13]} 51. Qd2+ {[%emt 0:00:08]} Kb3 {[%emt 0:00:08]} 52. Kd4 {[%emt 0:00:09]} a2 {[%emt 0:00:11]} 53. Qc3+ {[%emt 0:00:03]} Ka4 {[%emt 0:00:03]} 54. Qa1 {[%emt 0:00:01]} Ka3 {[%emt 0:00:03]} 55. Kc3 {[%emt 0:00:02]} Ka4 {[%emt 0:00:03]} 56. Qxa2+ {[%emt 0:00:07]} Kb5 {[%emt 0:00:29]} 57. Qc4+ {[%emt 0:00:02]} Kb6 {[%emt 0:00:10]} 58. Qd5 {[%emt 0:00:03]} Kc7 {[%emt 0:00:04]} 59. Qe6 {[%emt 0:00:02]} Kd8 {[%emt 0:00:04]} 60. Qf7 {[%emt 0:00:02]} Kc8 {[%emt 0:00:03]} 61. Kd4 {[%emt 0:00:01]} Kd8 {[%emt 0:00:01]} 62. Kc5 {[%emt 0:00:01]} Kc8 {[%emt 0:00:01]} 63. Kc6 {[%emt 0:00:02]} Kb8 {[%emt 0:00:01]} 64. Qb7# {[%emt 0:00:01]} 1-0

[Event "African Online-ch U20-Open 2021"]
[Site "Online"]
[Date "2021.02.01"]
[Round "9.9"]
[White "Bidi, Abdeljalil"]
[Black "Mena, Martin"]
[Result "0-1"]
[ECO "B85"]
[WhiteElo "1750"]
[BlackElo "1776"]
[Annotator "NA RC"]
[PlyCount "60"]
[EventDate "2021.02.01"]
[EventType "swiss"]
[EventCountry "NET"]
[SourceTitle "playchess.com"]
[Source "ChessBase"]
[SourceQuality "1"]
[TimeControl "1500+10"]

1. e4 {[%emt 0:00:00]} c5 {[%emt 0:00:11]} 2. Nf3 {[%emt 0:00:03]} d6 {[%emt 0:00:03]} 3. d4 {[%emt 0:00:02]} cxd4 {[%emt 0:00:01]} 4. Nxd4 {[%emt 0:00:03]} Nf6 {[%emt 0:00:03]} 5. Nc3 {[%emt 0:00:02]} a6 {[%emt 0:00:02]} 6. Be2 {[%emt 0:00:01]} e6 {[%emt 0:00:07]} 7. O-O {[%emt 0:00:03]} Qc7 {[%emt 0:00:13]} 8. a4 {[%emt 0:00:02]} Be7 {[%emt 0:00:08]} 9. Be3 {[%emt 0:00:02]} O-O {[%emt 0:00:22]} 10. f4 {[%emt 0:00:02]} Nc6 {[%emt 0:00:03]} 11. Bf3 {[%emt 0:00:03]} Bd7 {[%emt 0:00:14]} 12. Nb3 {[%emt 0:00:02]} Rab8 {[%emt 0:00:27]} 13. a5 {[%emt 0:00:07]} Rfe8 {[%emt 0:04:10]} 14. Kh1 {[%emt 0:00:06]} Bc8 {[%emt 0:00:55]} 15. g4 {[%emt 0:00:12]} Nd7 {[%emt 0:00:21]} 16. Bg2 {[%emt 0:00:17]} g6 {[%emt 0:01:13]} 17. f5 {[%emt 0:00:07]} Nce5 {[%emt 0:04:22]} 18. fxe6 {[%emt 0:00:51]} fxe6 {[%emt 0:00:05]} 19. Nd4 {[%emt 0:00:24]} Bf8 {[%emt 0:00:43]} 20. h3 {[%emt 0:01:22]} b6 {[%emt 0:00:39]} 21. axb6 {[%emt 0:01:30]} Nxb6 {[%emt 0:00:06]} 22. b3 {[%emt 0:00:21]} Qxc3 {[%emt 0:00:16]} 23. Qe2 {[%emt 0:00:15]} Bg7 {[%emt 0:00:40]} 24. Rad1 {[%emt 0:00:20]} d5 {[%emt 0:00:26]} 25. Bf4 {[%emt 0:00:23]} dxe4 {[%emt 0:00:50]} 26. Bxe5 {[%emt 0:01:57]} Bxe5 {[%emt 0:00:50]} 27. Qxe4 {[%emt 0:00:02]} Bxd4 {[%emt 0:00:37]} 28. Rxd4 {[%emt 0:00:57]} Bb7 {[%emt 0:00:12]} 29. Qe5 {[%emt 0:01:25]} Qxh3+ {[%emt 0:00:10]} 30. Kg1 {[%emt 0:00:16]} Qxg2# {[%emt 0:00:04]} 0-1

[Event "African Online-ch U20-Open 2021"]
[Site "Online"]
[Date "2021.02.01"]
[Round "9.11"]
[White "Ben Abbes, Ayoub"]
[Black "Potgieter, Edward"]
[Result "0-1"]
[ECO "C50"]
[WhiteElo "1481"]
[BlackElo "1229"]
[Annotator "NA RC"]
[PlyCount "134"]
[EventDate "2021.02.01"]
[EventType "swiss"]
[EventCountry "NET"]
[SourceTitle "playchess.com"]
[Source "ChessBase"]
[SourceQuality "1"]
[TimeControl "1500+10"]

1. e4 {[%emt 0:00:00]} e5 {[%emt 0:00:03]} 2. Nf3 {[%emt 0:00:05]} Nc6 {[%emt 0:00:01]} 3. Bc4 {[%emt 0:00:03]} Bc5 {[%emt 0:00:03]} 4. Nc3 {[%emt 0:00:04]} Nf6 {[%emt 0:00:05]} 5. d3 {[%emt 0:00:01]} h6 {[%emt 0:00:02]} 6. Be3 {[%emt 0:00:03]} Bb6 {[%emt 0:00:08]} 7. Nd5 {[%emt 0:00:03]} d6 {[%emt 0:00:28]} 8. Nxb6 {[%emt 0:00:11]} axb6 {[%emt 0:00:02]} 9. h3 {[%emt 0:00:04]} O-O {[%emt 0:00:34]} 10. O-O {[%emt 0:00:06]} Na5 {[%emt 0:00:12]} 11. Bb3 {[%emt 0:00:15]} Nxb3 {[%emt 0:00:28]} 12. axb3 {[%emt 0:00:03]} Bd7 {[%emt 0:01:01]} 13. Qd2 {[%emt 0:00:21]} Qe7 {[%emt 0:01:19]} 14. Nh2 {[%emt 0:00:06]} d5 {[%emt 0:01:10]} 15. exd5 {[%emt 0:00:14]} Nxd5 {[%emt 0:00:12]} 16. Rae1 {[%emt 0:00:20]} Nxe3 {[%emt 0:00:23]} 17. Qxe3 {[%emt 0:00:16]} Rfe8 {[%emt 0:03:55]} 18. f4 {[%emt 0:00:13]} Ra2 {[%emt 0:01:19]} 19. fxe5 {[%emt 0:01:04]} Rxb2 {[%emt 0:00:26]} 20. Rf2 {[%emt 0:00:05]} Ra8 {[%emt 0:00:31]} 21. Ref1 {[%emt 0:00:35]} Be6 {[%emt 0:00:27]} 22. d4 {[%emt 0:00:17]} Raa2 {[%emt 0:01:19]} 23. c4 {[%emt 0:00:06]} Rxf2 {[%emt 0:00:30]} 24. Rxf2 {[%emt 0:00:04]} Rxf2 {[%emt 0:00:05]} 25. Qxf2 {[%emt 0:00:08]} c6 {[%emt 0:01:21]} 26. Nf1 {[%emt 0:00:11]} Qb4 {[%emt 0:00:31]} 27. Qe3 {[%emt 0:00:38]} b5 {[%emt 0:00:56]} 28. Nd2 {[%emt 0:00:21]} bxc4 {[%emt 0:00:14]} 29. bxc4 {[%emt 0:00:18]} Bxc4 {[%emt 0:00:11]} 30. Ne4 {[%emt 0:00:08]} Qb1+ {[%emt 0:00:30]} 31. Kh2 {[%emt 0:00:05]} Bd5 {[%emt 0:00:25]} 32. Nc3 {[%emt 0:01:35]} Qb3 {[%emt 0:00:11]} 33. Qd2 {[%emt 0:00:34]} b5 {[%emt 0:00:33]} 34. Ne2 {[%emt 0:00:08]} Qa2 {[%emt 0:00:31]} 35. Qxa2 {[%emt 0:01:38]} Bxa2 {[%emt 0:00:05]} 36. Kg3 {[%emt 0:00:01]} b4 {[%emt 0:00:13]} 37. Nc1 {[%emt 0:00:06]} b3 {[%emt 0:00:04]} 38. Nd3 {[%emt 0:00:02]} Kf8 {[%emt 0:00:19]} 39. Kf3 {[%emt 0:00:06]} Ke7 {[%emt 0:00:05]} 40. Ke3 {[%emt 0:00:01]} Ke6 {[%emt 0:00:08]} 41. Nf4+ {[%emt 0:00:04]} Kd7 {[%emt 0:00:23]} 42. Nd3 {[%emt 0:00:02]} g5 {[%emt 0:00:25]} 43. Kd2 {[%emt 0:00:08]} Ke6 {[%emt 0:00:09]} 44. Kc3 {[%emt 0:00:05]} f5 {[%emt 0:01:18]} 45. Nc5+ {[%emt 0:01:39]} Ke7 {[%emt 0:01:58]} 46. Nxb3 {[%emt 0:01:17]} Bxb3 {[%emt 0:00:05]} 47. Kxb3 {[%emt 0:00:02]} h5 {[%emt 0:01:03]} 48. Kc3 {[%emt 0:00:09]} Ke6 {[%emt 0:00:37]} 49. Kd3 {[%emt 0:00:13]} h4 {[%emt 0:01:12]} 50. Ke3 {[%emt 0:00:07]} c5 {[%emt 0:00:29]} 51. dxc5 {[%emt 0:01:33]} Kxe5 {[%emt 0:00:04]} 52. Kf3 {[%emt 0:00:10]} Kd5 {[%emt 0:00:14]} 53. g3 {[%emt 0:00:21]} hxg3 {[%emt 0:00:55]} 54. Kxg3 {[%emt 0:00:03]} Kxc5 {[%emt 0:00:22]} 55. h4 {[%emt 0:00:04]} gxh4+ {[%emt 0:00:12]} 56. Kxh4 {[%emt 0:00:03]} Kd4 {[%emt 0:00:06]} 57. Kg3 {[%emt 0:00:10]} Ke3 {[%emt 0:00:08]} 58. Kg2 {[%emt 0:00:03]} f4 {[%emt 0:00:12]} 59. Kf1 {[%emt 0:00:05]} Kf3 {[%emt 0:00:02]} 60. Kg1 {[%emt 0:00:02]} Ke2 {[%emt 0:00:02]} 61. Kh2 {[%emt 0:00:13]} f3 {[%emt 0:00:02]} 62. Kh1 {[%emt 0:00:02]} f2 {[%emt 0:00:02]} 63. Kh2 {[%emt 0:00:02]} f1=Q {[%emt 0:00:03]} 64. Kg3 {[%emt 0:00:02]} Qf3+ {[%emt 0:00:02]} 65. Kh2 {[%emt 0:00:02]} Qg4 {[%emt 0:00:02]} 66. Kh1 {[%emt 0:00:02]} Qg8 {[%emt 0:00:02]} 67. Kh2 {[%emt 0:00:02]} Kf2 {[%emt 0:00:02]} 0-1

[Event "African Online-ch U20-Open 2021"]
[Site "Online"]
[Date "2021.02.01"]
[Round "9.12"]
[White "Palmer, Reegan"]
[Black "Selogelo Othata"]
[Result "0-1"]
[ECO "A34"]
[WhiteElo "1325"]
[BlackElo "1725"]
[Annotator "NA RC"]
[PlyCount "78"]
[EventDate "2021.02.01"]
[EventType "swiss"]
[EventCountry "NET"]
[SourceTitle "playchess.com"]
[Source "ChessBase"]
[SourceQuality "1"]
[TimeControl "1500+10"]

1. e4 {[%emt 0:00:00]} c5 {[%emt 0:00:04]} 2. c4 {[%emt 0:00:07]} e6 {[%emt 0:00:11]} 3. d3 {[%emt 0:00:02]} Nc6 {[%emt 0:00:03]} 4. Nc3 {[%emt 0:00:04]} Nf6 {[%emt 0:00:09]} 5. g3 {[%emt 0:00:08]} Be7 {[%emt 0:00:06]} 6. Bg2 {[%emt 0:00:03]} O-O {[%emt 0:00:04]} 7. Nge2 {[%emt 0:00:03]} Qc7 {[%emt 0:00:04]} 8. O-O {[%emt 0:00:11]} d6 {[%emt 0:00:06]} 9. f4 {[%emt 0:00:07]} Re8 {[%emt 0:00:31]} 10. Be3 {[%emt 0:00:16]} a6 {[%emt 0:00:08]} 11. a3 {[%emt 0:01:05]} Rb8 {[%emt 0:00:06]} 12. Qd2 {[%emt 0:03:01]} Ng4 {[%emt 0:00:09]} 13. h3 {[%emt 0:00:05]} Nxe3 {[%emt 0:00:05]} 14. Qxe3 {[%emt 0:00:01]} Bf6 {[%emt 0:00:06]} 15. Kh2 {[%emt 0:00:41]} b5 {[%emt 0:00:33]} 16. cxb5 {[%emt 0:00:34]} axb5 {[%emt 0:00:03]} 17. e5 {[%emt 0:00:02]} dxe5 {[%emt 0:00:14]} 18. Qxc5 {[%emt 0:00:03]} Bd7 {[%emt 0:00:45]} 19. Nxb5 {[%emt 0:05:14]} Rxb5 {[%emt 0:00:43]} 20. Qxb5 {[%emt 0:00:03]} Nd4 {[%emt 0:00:03]} 21. Qc4 {[%emt 0:01:02]} Qxc4 {[%emt 0:00:06]} 22. dxc4 {[%emt 0:00:02]} Nxe2 {[%emt 0:00:03]} 23. fxe5 {[%emt 0:00:03]} Bxe5 {[%emt 0:00:07]} 24. Rf3 {[%emt 0:00:20]} f6 {[%emt 0:03:08]} 25. Re3 {[%emt 0:00:23]} Nd4 {[%emt 0:00:16]} 26. Rd1 {[%emt 0:00:15]} Ba4 {[%emt 0:00:24]} 27. Rc1 {[%emt 0:02:51]} Nf5 {[%emt 0:00:28]} 28. Rxe5 {[%emt 0:01:33]} fxe5 {[%emt 0:00:05]} 29. Re1 {[%emt 0:00:04]} Rc8 {[%emt 0:01:00]} 30. Rxe5 {[%emt 0:00:04]} Nd4 {[%emt 0:01:26]} 31. c5 {[%emt 0:00:51]} Kf7 {[%emt 0:01:30]} 32. b4 {[%emt 0:00:15]} Kf6 {[%emt 0:00:51]} 33. Re3 {[%emt 0:00:05]} e5 {[%emt 0:01:11]} 34. h4 {[%emt 0:00:16]} h6 {[%emt 0:01:10]} 35. g4 {[%emt 0:00:33]} g5 {[%emt 0:02:29]} 36. hxg5+ {[%emt 0:00:59]} hxg5 {[%emt 0:00:04]} 37. Kg3 {[%emt 0:00:07]} Ke6 {[%emt 0:00:51]} 38. Be4 {[%emt 0:00:18]} Rf8 {[%emt 0:00:19]} 39. Rc3 {[%emt 0:01:19]} Ne2+ {[%emt 0:00:08]} 0-1

[Event "African Online-ch U20-Open 2021"]
[Site "Online"]
[Date "2021.02.01"]
[Round "9.13"]
[White "Machinya Desire"]
[Black "Elayeb, Med Yessine"]
[Result "0-1"]
[ECO "A05"]
[WhiteElo "1638"]
[BlackElo "1666"]
[Annotator "NA RC"]
[PlyCount "96"]
[EventDate "2021.02.01"]
[EventType "swiss"]
[EventCountry "NET"]
[SourceTitle "playchess.com"]
[Source "ChessBase"]
[SourceQuality "1"]
[TimeControl "1500+10"]

1. e4 {[%emt 0:00:00]} c5 {[%emt 0:00:02]} 2. Nf3 {[%emt 0:00:05]} Nc6 {[%emt 0:00:02]} 3. d3 {[%emt 0:00:03]} Nf6 {[%emt 0:00:32]} 4. Nbd2 {[%emt 0:00:17]} e5 {[%emt 0:00:12]} 5. g3 {[%emt 0:00:04]} d6 {[%emt 0:00:07]} 6. Bg2 {[%emt 0:00:02]} g6 {[%emt 0:00:19]} 7. O-O {[%emt 0:00:19]} Bg7 {[%emt 0:00:04]} 8. Re1 {[%emt 0:00:08]} O-O {[%emt 0:00:03]} 9. Nf1 {[%emt 0:00:11]} Be6 {[%emt 0:00:24]} 10. h4 {[%emt 0:00:10]} h6 {[%emt 0:01:17]} 11. Ne3 {[%emt 0:02:02]} d5 {[%emt 0:00:44]} 12. exd5 {[%emt 0:01:40]} Nxd5 {[%emt 0:00:04]} 13. Nh2 {[%emt 0:01:16]} Re8 {[%emt 0:01:01]} 14. c3 {[%emt 0:02:27]} Qd7 {[%emt 0:00:40]} 15. Neg4 {[%emt 0:05:47]} h5 {[%emt 0:01:31]} 16. Ne3 {[%emt 0:00:22]} Rad8 {[%emt 0:00:18]} 17. Qe2 {[%emt 0:00:48]} b6 {[%emt 0:05:34]} 18. Rd1 {[%emt 0:00:44]} Nxe3 {[%emt 0:02:39]} 19. Bxe3 {[%emt 0:00:14]} Ne7 {[%emt 0:00:46]} 20. Qf1 {[%emt 0:05:50]} Qb5 {[%emt 0:00:46]} 21. b3 {[%emt 0:01:11]} Rd6 {[%emt 0:01:11]} 22. Bf3 {[%emt 0:01:47]} Red8 {[%emt 0:00:53]} 23. Be2 {[%emt 0:00:05]} Qd7 {[%emt 0:00:04]} 24. Nf3 {[%emt 0:00:35]} Bf5 {[%emt 0:01:28]} 25. Ne1 {[%emt 0:00:57]} Nd5 {[%emt 0:02:33]} 26. Rac1 {[%emt 0:00:19]} Bh3 {[%emt 0:00:56]} 27. Ng2 {[%emt 0:00:10]} Nxe3 {[%emt 0:00:54]} 28. fxe3 {[%emt 0:00:10]} Rf6 {[%emt 0:00:03]} 29. Qe1 {[%emt 0:00:03]} Bh6 {[%emt 0:00:46]} 30. Bf1 {[%emt 0:01:03]} Rf3 {[%emt 0:01:05]} 31. e4 {[%emt 0:00:50]} Bxc1 {[%emt 0:00:13]} 32. Rxc1 {[%emt 0:00:04]} Qg4 {[%emt 0:00:37]} 33. Kh2 {[%emt 0:00:19]} Bxg2 {[%emt 0:00:34]} 34. Bxg2 {[%emt 0:00:06]} Rfxd3 {[%emt 0:00:04]} 35. Bh3 {[%emt 0:00:29]} Qf3 {[%emt 0:00:21]} 36. Bg2 {[%emt 0:00:10]} Rd2 {[%emt 0:00:24]} 37. Qf1 {[%emt 0:00:12]} Qxf1 {[%emt 0:00:06]} 38. Rxf1 {[%emt 0:00:04]} Rxa2 {[%emt 0:00:02]} 39. Kh1 {[%emt 0:00:09]} Rd3 {[%emt 0:00:07]} 40. b4 {[%emt 0:00:16]} Rxg3 {[%emt 0:00:10]} 41. Bf3 {[%emt 0:00:05]} Rh3+ {[%emt 0:00:28]} 42. Kg1 {[%emt 0:00:03]} cxb4 {[%emt 0:00:04]} 43. cxb4 {[%emt 0:00:04]} Rxh4 {[%emt 0:00:01]} 44. Rc1 {[%emt 0:00:07]} Rh3 {[%emt 0:00:14]} 45. Rc3 {[%emt 0:00:24]} Kg7 {[%emt 0:00:42]} 46. Rb3 {[%emt 0:00:18]} g5 {[%emt 0:00:11]} 47. Rd3 {[%emt 0:00:10]} g4 {[%emt 0:00:07]} 48. Be2 {[%emt 0:00:03]} Rxe2 {[%emt 0:00:04]} 0-1

[Event "African Online-ch U20-Open 2021"]
[Site "Online"]
[Date "2021.02.01"]
[Round "9.14"]
[White "van der Merwe, Alexander"]
[Black "Sparg, Nathan"]
[Result "1-0"]
[ECO "C01"]
[WhiteElo "1655"]
[BlackElo "1413"]
[Annotator "NA RC"]
[PlyCount "73"]
[EventDate "2021.02.01"]
[EventType "swiss"]
[EventCountry "NET"]
[SourceTitle "playchess.com"]
[Source "ChessBase"]
[SourceQuality "1"]
[TimeControl "1500+10"]

1. e4 {[%emt 0:00:00]} e6 {[%emt 0:00:04]} 2. d4 {[%emt 0:00:05]} d5 {[%emt 0:00:03]} 3. Nc3 {[%emt 0:00:02]} Bb4 {[%emt 0:00:05]} 4. exd5 {[%emt 0:00:21]} exd5 {[%emt 0:00:24]} 5. Bd3 {[%emt 0:00:04]} Nf6 {[%emt 0:00:44]} 6. Nge2 {[%emt 0:00:06]} O-O {[%emt 0:00:28]} 7. O-O {[%emt 0:00:06]} c6 {[%emt 0:00:25]} 8. Bg5 {[%emt 0:00:30]} b6 {[%emt 0:01:09]} 9. Ng3 {[%emt 0:01:14]} h6 {[%emt 0:01:06]} 10. Bf4 {[%emt 0:00:57]} Ba6 {[%emt 0:00:35]} 11. Bxa6 {[%emt 0:00:53]} Nxa6 {[%emt 0:00:08]} 12. Qd3 {[%emt 0:00:14]} Nc7 {[%emt 0:00:30]} 13. Nf5 {[%emt 0:01:02]} Ne6 {[%emt 0:03:32]} 14. Be5 {[%emt 0:03:16]} Re8 {[%emt 0:01:30]} 15. Qf3 {[%emt 0:03:31]} Ng5 {[%emt 0:03:25]} 16. Qf4 {[%emt 0:02:52]} Bf8 {[%emt 0:01:19]} 17. Nxh6+ {[%emt 0:01:49]} gxh6 {[%emt 0:00:13]} 18. Bxf6 {[%emt 0:00:26]} Be7 {[%emt 0:01:42]} 19. Rfe1 {[%emt 0:02:47]} Qd7 {[%emt 0:02:08]} 20. h4 {[%emt 0:01:26]} Bxf6 {[%emt 0:01:24]} 21. Qxf6 {[%emt 0:00:55]} Nh7 {[%emt 0:03:13]} 22. Qxh6 {[%emt 0:00:47]} Kh8 {[%emt 0:00:42]} 23. Ne2 {[%emt 0:01:09]} Rg8 {[%emt 0:00:57]} 24. Ng3 {[%emt 0:00:49]} Qg4 {[%emt 0:00:46]} 25. Re7 {[%emt 0:01:11]} Rg6 {[%emt 0:01:50]} 26. Qh5 {[%emt 0:01:35]} Qxd4 {[%emt 0:00:06]} 27. Rxf7 {[%emt 0:00:28]} Rg7 {[%emt 0:00:02]} 28. Rxg7 {[%emt 0:00:24]} Qxg7 {[%emt 0:00:02]} 29. Re1 {[%emt 0:00:15]} Kg8 {[%emt 0:00:58]} 30. Re8+ {[%emt 0:00:22]} Rxe8 {[%emt 0:00:02]} 31. Qxe8+ {[%emt 0:00:02]} Nf8 {[%emt 0:00:01]} 32. Qxc6 {[%emt 0:00:06]} Qe5 {[%emt 0:00:10]} 33. Qh6 {[%emt 0:00:24]} Qe1+ {[%emt 0:00:07]} 34. Kh2 {[%emt 0:00:04]} Qxf2 {[%emt 0:00:21]} 35. Qg5+ {[%emt 0:00:19]} Kh8 {[%emt 0:00:04]} 36. Nh5 {[%emt 0:00:11]} Qd4 {[%emt 0:00:07]} 37. c3 {[%emt 0:00:11]} 1-0

[Event "African Online-ch U20-Open 2021"]
[Site "Online"]
[Date "2021.02.01"]
[Round "9.15"]
[White "Soojay, Jorah"]
[Black "Pungo, Honorato"]
[Result "0-1"]
[ECO "B24"]
[WhiteElo "1478"]
[BlackElo "1550"]
[Annotator "NA RC"]
[PlyCount "96"]
[EventDate "2021.02.01"]
[EventType "swiss"]
[EventCountry "NET"]
[SourceTitle "playchess.com"]
[Source "ChessBase"]
[SourceQuality "1"]
[TimeControl "1500+10"]

1. e4 {[%emt 0:00:00]} c5 {[%emt 0:00:04]} 2. Nc3 {[%emt 0:00:18]} Nc6 {[%emt 0:00:07]} 3. f4 {[%emt 0:00:03]} g6 {[%emt 0:00:02]} 4. g3 {[%emt 0:00:03]} Bg7 {[%emt 0:00:02]} 5. Bg2 {[%emt 0:00:02]} e6 {[%emt 0:00:01]} 6. d3 {[%emt 0:00:03]} h5 {[%emt 0:00:03]} 7. Nf3 {[%emt 0:00:04]} Nge7 {[%emt 0:00:07]} 8. h3 {[%emt 0:00:07]} d6 {[%emt 0:00:19]} 9. Bd2 {[%emt 0:00:05]} a6 {[%emt 0:00:05]} 10. Rb1 {[%emt 0:00:33]} b5 {[%emt 0:00:08]} 11. O-O {[%emt 0:00:05]} Bb7 {[%emt 0:00:04]} 12. Kh1 {[%emt 0:00:05]} Qd7 {[%emt 0:00:17]} 13. a3 {[%emt 0:00:07]} Nd4 {[%emt 0:00:09]} 14. Nxd4 {[%emt 0:00:14]} Bxd4 {[%emt 0:00:08]} 15. Ne2 {[%emt 0:00:03]} Bg7 {[%emt 0:00:10]} 16. Bc3 {[%emt 0:00:15]} Bxc3 {[%emt 0:00:21]} 17. Nxc3 {[%emt 0:00:04]} a5 {[%emt 0:00:06]} 18. Qe2 {[%emt 0:00:05]} b4 {[%emt 0:00:08]} 19. Nd1 {[%emt 0:00:04]} Nc6 {[%emt 0:00:26]} 20. c3 {[%emt 0:00:06]} b3 {[%emt 0:00:33]} 21. Ne3 {[%emt 0:00:05]} a4 {[%emt 0:00:19]} 22. Nc4 {[%emt 0:00:05]} Ba6 {[%emt 0:00:09]} 23. Nb6 {[%emt 0:00:02]} Qb7 {[%emt 0:00:05]} 24. Nxa8 {[%emt 0:00:04]} Qxa8 {[%emt 0:00:03]} 25. f5 {[%emt 0:00:24]} Ne5 {[%emt 0:00:26]} 26. c4 {[%emt 0:00:04]} Ke7 {[%emt 0:00:21]} 27. Qe3 {[%emt 0:00:36]} Qg8 {[%emt 0:01:19]} 28. fxe6 {[%emt 0:00:17]} f6 {[%emt 0:00:31]} 29. d4 {[%emt 0:02:00]} Nxc4 {[%emt 0:00:52]} 30. Qc3 {[%emt 0:00:03]} Qxe6 {[%emt 0:02:01]} 31. dxc5 {[%emt 0:00:16]} dxc5 {[%emt 0:00:05]} 32. Rfe1 {[%emt 0:01:20]} Rd8 {[%emt 0:00:27]} 33. Rbd1 {[%emt 0:00:21]} Rd6 {[%emt 0:00:28]} 34. Kh2 {[%emt 0:00:39]} g5 {[%emt 0:01:30]} 35. Bf1 {[%emt 0:00:08]} h4 {[%emt 0:00:47]} 36. Bxc4 {[%emt 0:00:26]} Qxc4 {[%emt 0:05:38]} 37. Qxc4 {[%emt 0:00:33]} hxg3+ {[%emt 0:00:16]} 38. Kxg3 {[%emt 0:00:07]} Bxc4 {[%emt 0:00:02]} 39. Rxd6 {[%emt 0:00:13]} Kxd6 {[%emt 0:00:05]} 40. Kf3 {[%emt 0:00:09]} Bd3 {[%emt 0:00:05]} 41. Rd1 {[%emt 0:00:04]} c4 {[%emt 0:00:06]} 42. Ke3 {[%emt 0:00:03]} Ke5 {[%emt 0:00:07]} 43. Rc1 {[%emt 0:00:26]} Bc2 {[%emt 0:01:28]} 44. h4 {[%emt 0:00:25]} c3 {[%emt 0:00:37]} 45. bxc3 {[%emt 0:00:17]} b2 {[%emt 0:00:05]} 46. Rxc2 {[%emt 0:00:15]} b1=Q {[%emt 0:00:03]} 47. Rd2 {[%emt 0:00:02]} Qxe4+ {[%emt 0:00:12]} 48. Kf2 {[%emt 0:00:02]} Qxh4+ {[%emt 0:00:03]} 0-1